fUSD/lending_fUSD_20260129
["ID","MTS","AMOUNT","RATE_DAILY","PERIOD"]
[404011063,1769717245349,-562.1642859,0.00016373,2]
[404011064,1769717245370,-500.0,0.00016373,2]
[404011065,1769717245389,-500.37082769,0.00016373,2]
[404011066,1769717245409,-500.0,0.00016373,2]
[404011067,1769717245428,-516.54603341,0.00016373,2]
[404011068,1769717245447,-500.37981101,0.00016373,2]
[404011069,1769717245468,-500.0,0.00016373,2]
[404011070,1769717245490,-500.0,0.00016373,2]
[404011071,1769717245509,-500.0,0.00016373,2]
[404011072,1769717245528,-500.0,0.00016373,2]
[404011073,1769717245547,-500.0,0.00016373,2]
[404011074,1769717245567,-500.0,0.00016437,2]
[404011075,1769717245590,-500.0,0.00016499,2]
[404011076,1769717245614,-7670.02318306,0.00016668,2]
[404011079,1769717299836,-151.0,0.00016426,2]
[404011080,1769717299862,-151.0,0.00016446,2]
[404011081,1769717299891,-2329.98681694,0.00016668,2]
[404011082,1769717299919,-300.0,0.00016669,2]
[404011083,1769717299943,-4120.1371,0.0001667,2]
[404011084,1769717299970,-6020.13871305,0.0001667,2]
[404011085,1769717299995,-166.66,0.00016681,2]
[404011086,1769717300020,-164.84,0.00016755,2]
[404011087,1769717300230,-151.0,0.0001676,2]
[404011088,1769717300256,-151.0,0.0001676,2]
[404011089,1769717300280,-151.0,0.0001676,2]
[404011090,1769717300306,-151.0,0.0001676,2]
[404011091,1769717300330,-151.0,0.0001676,2]
[404011092,1769717300357,-151.0,0.0001676,2]
[404011093,1769717300384,-151.0,0.0001676,2]
[404011094,1769717300409,-152.99430487,0.0001676,2]
[404011095,1769717310462,151.0,0.0001646,2]
[404011096,1769717317240,-658.19221254,0.00016764,2]
[404011097,1769717317267,-500.0,0.00016764,2]
[404011098,1769717317293,-658.19221254,0.00016764,2]
[404011099,1769717317323,-500.0,0.00016764,2]
[404011100,1769717317350,-658.19221254,0.00016764,2]
[404011101,1769717317377,-500.0,0.00016764,2]
[404011102,1769717317403,-658.19221254,0.00016764,2]
[404011103,1769717317430,-500.0,0.00016764,2]
[404011104,1769717317457,-658.19221254,0.00016764,2]
[404011105,1769717317483,-500.0,0.00016764,2]
[404011106,1769717317508,-658.19221254,0.00016764,2]
[404011107,1769717317535,-500.0,0.00016764,2]
[404011108,1769717317560,-658.19221254,0.00016764,2]
[404011109,1769717317584,-658.19221254,0.00016764,2]
[404011110,1769717317611,-500.0,0.00016764,2]
[404011111,1769717317636,-658.19221254,0.00016764,2]
[404011112,1769717317664,-500.0,0.00016764,2]
[404011113,1769717317690,-658.19221254,0.00016764,2]
[404011114,1769717317721,-500.0,0.00016764,2]
[404011115,1769717317746,-658.19221254,0.00016764,2]
[404011116,1769717317771,-658.19221254,0.00016764,2]
[404011117,1769717317795,-658.19221254,0.00016764,2]
[404011118,1769717317821,-500.0,0.00016764,2]
[404011119,1769717317847,-658.19221254,0.00016764,2]
[404011120,1769717317874,-500.0,0.00016764,2]
[404011121,1769717317899,-658.19221254,0.00016764,2]
[404011122,1769717317926,-500.0,0.00016764,2]
[404011123,1769717317951,-658.19221254,0.00016764,2]
[404011124,1769717317980,-500.0,0.00016764,2]
[404011125,1769717318005,-658.19221254,0.00016764,2]
[404011126,1769717318032,-500.0,0.00016764,2]
[404011127,1769717318057,-658.19221254,0.00016764,2]
[404011128,1769717318084,-500.0,0.00016764,2]
[404011129,1769717318111,-658.19221254,0.00016764,2]
[404011130,1769717318137,-658.19221254,0.00016764,2]
[404011131,1769717318165,-500.0,0.00016764,2]
[404011132,1769717318192,-658.19221254,0.00016764,2]
[404011133,1769717318219,-658.19221254,0.00016764,2]
[404011134,1769717318247,-500.0,0.00016764,2]
[404011135,1769717318275,-658.19221254,0.00016764,2]
[404011136,1769717318302,-658.19221254,0.00016764,2]
[404011137,1769717318333,-500.0,0.00016764,2]
[404011138,1769717318363,-500.0,0.00016764,2]
[404011139,1769717318391,-658.19221254,0.00016764,2]
[404011140,1769717318417,-658.19221254,0.00016764,2]
[404011141,1769717318445,-500.0,0.00016764,2]
[404011142,1769717318472,-658.19221254,0.00016764,2]
[404011143,1769717318500,-271.63429195,0.00016764,2]
[404011144,1769717318737,-658.19221254,0.00016764,2]
[404011145,1769717318764,-658.19221254,0.00016764,2]
[404011146,1769717318791,-658.19221254,0.00016764,2]
[404011147,1769717318817,-658.19221254,0.00016764,2]
[404011148,1769717318845,-500.0,0.00016764,2]
[404011149,1769717318871,-658.19221254,0.00016764,2]
[404011150,1769717318897,-658.19221254,0.00016764,2]
[404011151,1769717318923,-658.19221254,0.00016764,2]
[404011152,1769717318949,-658.19221254,0.00016764,2]
[404011153,1769717318975,-658.19221254,0.00016764,2]
[404011154,1769717319002,-658.19221254,0.00016764,2]
[404011155,1769717319029,-658.19221254,0.00016764,2]
[404011156,1769717319055,-658.19221254,0.00016764,2]
[404011157,1769717319080,-658.19221254,0.00016764,2]
[404011158,1769717319105,-658.19221254,0.00016764,2]
[404011159,1769717319130,-658.19221254,0.00016764,2]
[404011160,1769717319154,-658.19221254,0.00016764,2]
[404011161,1769717319179,-658.19221254,0.00016764,2]
[404011162,1769717319203,-658.19221254,0.00016764,2]
[404011163,1769717319228,-658.19221254,0.00016764,2]
[404011164,1769717319253,-658.19221254,0.00016764,2]
[404011165,1769717319278,-658.19221254,0.00016764,2]
[404011166,1769717319306,-658.19221254,0.00016764,2]
[404011167,1769717319333,-658.19221254,0.00016764,2]
[404011168,1769717319360,-658.19221254,0.00016764,2]
[404011169,1769717319386,-658.19221254,0.00016764,2]
[404011170,1769717319411,-658.19221254,0.00016764,2]
[404011171,1769717319438,-658.19221254,0.00016764,2]
[404011172,1769717319464,-658.19221254,0.00016764,2]
[404011173,1769717319490,-658.19221254,0.00016764,2]
[404011174,1769717319515,-658.19221254,0.00016764,2]
[404011175,1769717319540,-658.19221254,0.00016764,2]
[404011176,1769717319566,-653.6529559,0.00016764,2]
[404011177,1769717319592,-653.6529559,0.00016764,2]
[404011178,1769717319617,-653.6529559,0.00016764,2]
[404011179,1769717319642,-653.6529559,0.00016764,2]
[404011180,1769717319670,-653.6529559,0.00016764,2]
[404011181,1769717319696,-653.6529559,0.00016764,2]
[404011182,1769717319723,-653.6529559,0.00016764,2]
[404011183,1769717319748,-653.6529559,0.00016764,2]
[404011184,1769717319773,-653.6529559,0.00016764,2]
[404011185,1769717319797,-653.6529559,0.00016764,2]
[404011186,1769717319822,-653.6529559,0.00016764,2]
[404011187,1769717319847,-653.6529559,0.00016764,2]
[404011188,1769717319873,-653.6529559,0.00016764,2]
[404011189,1769717319899,-653.6529559,0.00016764,2]
[404011190,1769717319924,-653.6529559,0.00016764,2]
[404011191,1769717319950,-653.6529559,0.00016764,2]
[404011192,1769717319974,-653.6529559,0.00016764,2]
[404011193,1769717320000,-653.6529559,0.00016764,2]
[404011194,1769717320025,-653.6529559,0.00016764,2]
[404011195,1769717320050,-653.6529559,0.00016764,2]
[404011196,1769717320075,-653.6529559,0.00016764,2]
[404011197,1769717320100,-653.6529559,0.00016764,2]
[404011198,1769717320134,-653.6529559,0.00016764,2]
[404011199,1769717320165,-653.6529559,0.00016764,2]
[404011200,1769717320191,-653.6529559,0.00016764,2]
[404011201,1769717320218,-653.6529559,0.00016764,2]
[404011202,1769717320246,-653.6529559,0.00016764,2]
[404011203,1769717320272,-639.83063657,0.00016764,2]
[404011204,1769717337793,-13.82231933,0.00016764,2]
[404011205,1769717338087,-186.17768067,0.00016764,2]
[404011206,1769717344097,-150.0,0.00016764,2]
[404011207,1769717380155,290.38857769,0.0001384,2]
[404011212,1769717431776,-500.0,0.00016373,2]
[404011213,1769717431785,-321.78089856,0.00016373,2]
[404011214,1769717431794,-290.6541109,0.00016373,2]
[404011215,1769717431805,-226.17783873,0.00016373,2]
[404011216,1769717431815,-500.0,0.00016373,2]
[404011217,1769717431825,-500.0,0.00016373,2]
[404011218,1769717431835,-175.37065445,0.00016535,2]
[404011219,1769717431848,-177.78934555,0.00016535,2]
[404011220,1769717431857,-300.0,0.00016567,2]
[404011221,1769717431867,-1172.21065445,0.00016567,2]
[404011222,1769717431877,-27.78934555,0.00016567,2]
[404011223,1769717431886,-1566.68429855,0.00016568,2]
[404011224,1769717431920,-398.75,0.00016568,2]
[404011276,1769717432563,-88489.9702951,0.00016568,2]
[404011279,1769717432575,-18958.12770635,0.00016568,2]
[404011281,1769717432584,-317.47527519,0.00016764,2]
[404011283,1769717432594,-1181.64,0.00016765,2]
[404011285,1769717432603,-550.0,0.00016769,2]
[404011287,1769717432612,-1156.9964208,0.0001677,2]
[404011289,1769717432628,-10541.88493057,0.0001677,2]
[404011296,1769717432684,-2400.0,0.0001677,2]
[404011301,1769717432714,-772.22552744,0.0001677,2]
[404011303,1769717432725,-9223.5,0.0001677,2]
[404011305,1769717432739,-1954.0,0.0001677,2]
[404011400,1769717437837,-8674.6,0.0001677,2]
[404011401,1769717437855,-592.00000003,0.0001677,2]
[404011402,1769717437901,-2181.39418471,0.0001677,2]
[404011403,1769717437912,-2647.6595099,0.0001677,2]
[404011404,1769717437948,-12372.28398516,0.0001677,2]
[404011405,1769717438000,-1253.49451972,0.0001677,2]
[404011406,1769717438012,-13003.40650649,0.0001677,2]
[404011449,1769717438730,-2264.20348713,0.0001677,2]
[404011450,1769717438741,-279.36,0.0001677,2]
[404011451,1769717438754,-21636.24092805,0.0001677,2]
[404011452,1769717438763,-3967.93076866,0.00016807,2]
[404011453,1769717439846,-151.0,0.00016329,2]
[404011455,1769717439857,-205.68236483,0.00016807,2]
[404011456,1769717439869,-644.38,0.00016807,2]
[404011457,1769717439909,-957.95686651,0.00016807,2]
[404011458,1769717439919,-170.95,0.00016894,2]
[404011459,1769717439928,-126.00204061,0.00016921,2]
[404011460,1769717439941,-873.99795939,0.00016921,2]
[404011461,1769717439951,-1000.0,0.00016921,2]
[404011462,1769717439963,-166.66,0.00016921,2]
[404011463,1769717439973,-500.0,0.00016942,2]
[404011464,1769717439983,-187.39097398,0.00016942,2]
[404011465,1769717439993,-512.29027374,0.00016942,2]
[404011466,1769717440004,-114.79709002,0.00016942,2]
[404011467,1769717440016,-162.30306838,0.00016942,2]
[404011468,1769717440026,-315.14823953,0.00016971,2]
[404011469,1769717440039,-250.0,0.00017,2]
[404011470,1769717440051,-58.41340809,0.00017018,2]
[404011471,1769717440063,-108.24659191,0.00017018,2]
[404011472,1769717440074,-1181.64,0.00017039,2]
[404011473,1769717440084,-150.0,0.0001708,2]
[404011474,1769717440093,-310.11340809,0.00017098,2]
[404011475,1769717440106,-12.49729191,0.00017098,2]
[404011476,1769717440115,-500.0,0.00017098,2]
[404011477,1769717440125,-209.40437684,0.00017098,2]
[404011478,1769717440134,-250.0,0.00017098,2]
[404011479,1769717440143,-250.0,0.00017098,2]
[404011480,1769717440154,-500.0,0.00017098,2]
[404011481,1769717440164,-250.0,0.00017098,2]
[404011482,1769717440173,-250.0,0.00017098,2]
[404011483,1769717440183,-500.0,0.00017098,2]
[404011484,1769717440192,-250.0,0.00017098,2]
[404011485,1769717440202,-250.0,0.00017098,2]
[404011486,1769717440212,-500.0,0.00017098,2]
[404011487,1769717440222,-250.0,0.00017098,2]
[404011488,1769717440237,-250.0,0.00017098,2]
[404011489,1769717440248,-500.0,0.00017098,2]
[404011490,1769717440258,-250.0,0.00017098,2]
[404011491,1769717440267,-250.0,0.00017098,2]
[404011492,1769717440276,-250.0,0.00017098,2]
[404011493,1769717440287,-500.0,0.00017098,2]
[404011494,1769717440296,-250.0,0.00017098,2]
[404011495,1769717440306,-250.0,0.00017098,2]
[404011496,1769717440315,-250.0,0.00017098,2]
[404011497,1769717440325,-500.0,0.00017098,2]
[404011498,1769717440338,-250.0,0.00017098,2]
[404011499,1769717440348,-250.0,0.00017098,2]
[404011500,1769717440357,-250.0,0.00017098,2]
[404011501,1769717440367,-174.61919141,0.00017098,2]
[404011502,1769717440377,-500.0,0.00017098,2]
[404011503,1769717440387,-250.0,0.00017098,2]
[404011504,1769717440396,-250.0,0.00017098,2]
[404011505,1769717440406,-500.0,0.00017098,2]
[404011506,1769717440416,-250.0,0.00017098,2]
[404011507,1769717440427,-250.0,0.00017098,2]
[404011508,1769717440436,-500.0,0.00017098,2]
[404011509,1769717440446,-301.02953611,0.00017098,2]
[404011510,1769717440456,-266.88383045,0.00017098,2]
[404011511,1769717440465,-500.0,0.00017098,2]
[404011512,1769717440475,-500.0,0.00017098,2]
[404011513,1769717440484,-500.0,0.00017098,2]
[404011514,1769717440494,-500.0,0.00017098,2]
[404011515,1769717440503,-500.0,0.00017098,2]
[404011516,1769717440513,-500.0,0.00017098,2]
[404011517,1769717440522,-500.0,0.00017098,2]
[404011518,1769717440532,-500.0,0.00017098,2]
[404011519,1769717440541,-578.20924308,0.00017098,2]
[404011520,1769717440551,-500.0,0.00017098,2]
[404011521,1769717440561,-500.0,0.00017098,2]
[404011522,1769717440571,-500.0,0.00017098,2]
[404011523,1769717440580,-500.0,0.00017098,2]
[404011524,1769717440590,-854.2589148,0.00017098,2]
[404011525,1769717440599,-500.0,0.00017098,2]
[404011526,1769717440608,-500.0,0.00017098,2]
[404011527,1769717440618,-500.0,0.00017098,2]
[404011528,1769717440627,-500.0,0.00017098,2]
[404011529,1769717440637,-500.0,0.00017098,2]
[404011530,1769717440647,-209.40437684,0.00017098,2]
[404011531,1769717440656,-500.0,0.00017098,2]
[404011532,1769717440666,-721.12765535,0.00017098,2]
[404011533,1769717440675,-500.0,0.00017098,2]
[404011534,1769717440685,-500.0,0.00017098,2]
[404011535,1769717440695,-500.0,0.00017098,2]
[404011536,1769717440704,-500.0,0.00017098,2]
[404011537,1769717440714,-500.0,0.00017098,2]
[404011538,1769717440723,-359.91781005,0.00017098,2]
[404011539,1769717440732,-500.0,0.00017098,2]
[404011540,1769717440742,-500.0,0.00017098,2]
[404011541,1769717440751,-500.0,0.00017098,2]
[404011542,1769717440761,-500.0,0.00017098,2]
[404011543,1769717440770,-500.0,0.00017098,2]
[404011544,1769717440779,-500.0,0.00017098,2]
[404011545,1769717440789,-500.0,0.00017098,2]
[404011546,1769717440798,-209.40437684,0.00017098,2]
[404011547,1769717440808,-250.0,0.00017098,2]
[404011549,1769717440817,-250.0,0.00017098,2]
[404011550,1769717440827,-250.0,0.00017098,2]
[404011551,1769717440836,-250.0,0.00017098,2]
[404011552,1769717440846,-250.0,0.00017098,2]
[404011553,1769717440856,-250.0,0.00017098,2]
[404011554,1769717440866,-250.0,0.00017098,2]
[404011555,1769717440875,-250.0,0.00017098,2]
[404011556,1769717440885,-250.0,0.00017098,2]
[404011557,1769717440894,-250.0,0.00017098,2]
[404011558,1769717440904,-250.0,0.00017098,2]
[404011559,1769717440913,-217.15233878,0.00017153,2]
[404011560,1769717440923,-262.0,0.00017163,2]
[404011561,1769717440932,-150.0,0.0001718,2]
[404011562,1769717440941,-225.18697532,0.00017208,2]
[404011563,1769717440950,-233.51889341,0.00017263,2]
[404011564,1769717440960,-150.0,0.0001728,2]
[404011565,1769717440969,-200.0,0.00017307,2]
[404011566,1769717440978,-5888.0,0.00017313,2]
[404011567,1769717440988,-1181.64,0.00017313,2]
[404011568,1769717440997,-242.15909246,0.00017318,2]
[404011569,1769717441006,-166.66,0.00017355,2]
[404011570,1769717441016,-251.11897888,0.00017373,2]
[404011571,1769717441025,-150.0,0.0001738,2]
[404011572,1769717441034,-229.0,0.00017401,2]
[404011574,1769717441044,-2500.0,0.00017418,2]
[404011576,1769717441054,-260.4103811,0.00017428,2]
[404011578,1769717441063,-323.56883813,0.00017464,2]
[404011580,1769717441073,-570.81378429,0.00017464,2]
[404011582,1769717441083,-853.90328317,0.00017464,2]
[404011584,1769717441092,-1155.3597,0.00017464,2]
[404011586,1769717441102,-166.49289447,0.0001748,2]
[404011588,1769717441112,-270.0455652,0.00017483,2]
[404011590,1769717441123,-1409.0,0.00017518,2]
[404011592,1769717441132,-3478.0,0.00017518,2]
[404011594,1769717441141,-1334.0,0.00017518,2]
[404011596,1769717441151,-1270.0,0.00017518,2]
[404011598,1769717441161,-916.0,0.00017518,2]
[404011600,1769717441171,-1204.0,0.00017518,2]
[404011602,1769717441180,-300.0,0.00017519,2]
[404011604,1769717441190,-1736.93,0.00017524,2]
[404011605,1769717441199,-280.03725112,0.00017538,2]
[404011607,1769717441209,-1181.64,0.00017587,2]
[404011609,1769717441218,-290.39862941,0.00017593,2]
[404011612,1769717441228,-166.66,0.00017619,2]
[404011614,1769717441237,-229.0,0.00017624,2]
[404011616,1769717441246,-229.0,0.00017644,2]
[404011618,1769717441255,-217.15233878,0.00017646,2]
[404011620,1769717441264,-181.08010149,0.00017646,2]
[404011622,1769717441276,-885.86649465,0.00017646,2]
[404011624,1769717441287,-217.15233878,0.00017646,2]
[404011626,1769717441297,-301.1433787,0.00017648,2]
[404011628,1769717441306,-166.66,0.00017692,2]
[404011630,1769717441317,-150.0,0.00017699,2]
[404011632,1769717441326,-150.0,0.00017699,2]
[404011634,1769717441338,-150.0,0.00017699,2]
[404011636,1769717441348,-240.49848305,0.00017699,2]
[404011638,1769717441360,-150.0,0.00017699,2]
[404011640,1769717441370,-150.0,0.00017699,2]
[404011642,1769717441381,-150.0,0.00017699,2]
[404011644,1769717441391,-150.0,0.00017699,2]
[404011646,1769717441400,-150.0,0.00017699,2]
[404011648,1769717441412,-150.0,0.00017699,2]
[404011650,1769717441422,-150.0,0.00017699,2]
[404011653,1769717441431,-5369.0629928,0.0001773,2]
[404011655,1769717441440,-345.0,0.00017735,2]
[404011657,1769717441450,-381.0,0.00017735,2]
[404011659,1769717441459,-345.0,0.0001774,2]
[404011661,1769717441468,-5369.06299273,0.00017749,2]
[404011663,1769717441477,-381.0,0.0001775,2]
[404011665,1769717441487,-257.53390888,0.00017754,2]
[404011667,1769717441495,-150.0,0.00017754,2]
[404011669,1769717441506,-150.0,0.00017754,2]
[404011671,1769717441515,-150.0,0.00017754,2]
[404011673,1769717441526,-200.0,0.00017754,2]
[404011675,1769717441535,-150.0,0.00017754,2]
[404011677,1769717441544,-150.0,0.00017754,2]
[404011679,1769717441553,-159.30429848,0.00017754,2]
[404011681,1769717441564,-5369.06299273,0.00017768,2]
[404011684,1769717441582,-381.0,0.00017779,2]
[404011686,1769717441594,-381.0,0.00017785,2]
[404011688,1769717441603,-5369.06299273,0.00017787,2]
[404011714,1769717441834,-186.64,0.00017789,2]
[404011716,1769717441843,-345.0,0.00017792,2]
[404011718,1769717441852,-2207.947,0.00017792,2]
[404011720,1769717441862,-1500.0,0.000178,2]
[404011722,1769717441871,-5369.06299273,0.00017806,2]
[404011724,1769717441881,-355.0,0.00017806,2]
[404011726,1769717441890,-381.0,0.00017808,2]
[404011728,1769717441900,-200.0,0.00017809,2]
[404011730,1769717441909,-200.0,0.00017809,2]
[404011732,1769717441918,-150.0,0.00017809,2]
[404011734,1769717441927,-200.0,0.00017809,2]
[404011736,1769717441936,-150.0,0.00017809,2]
[404011738,1769717441945,-347.0,0.00017816,2]
[404011740,1769717441954,-345.0,0.00017818,2]
[404011742,1769717441963,-503.15466,0.0001782,2]
[404011744,1769717441972,-503.15467,0.0001782,2]
[404011746,1769717441981,-165.31,0.0001782,2]
[404011748,1769717441990,-5369.06299273,0.00017824,2]
[404011750,1769717441999,-151.0,0.00017827,2]
[404011752,1769717442008,-500.0,0.00017829,2]
[404011754,1769717442018,-500.0,0.00017829,2]
[404011756,1769717442027,-120441.37402622,0.0001783,2]
[404011758,1769717442036,-250.0,0.0001783,5]
[404011760,1769717442045,-250.0,0.0001783,5]
[404011762,1769717442054,-250.0,0.0001783,5]
[404011764,1769717442063,-211.03586,0.0001783,5]
[404011766,1769717442072,-344.0,0.00017832,2]
[404011768,1769717442081,-381.0,0.00017834,2]
[404011770,1769717442090,-5369.06299273,0.00017843,2]
[404011772,1769717442099,-381.0,0.00017846,2]
[404011774,1769717442108,-1181.64,0.00017861,2]
[404011776,1769717442117,-344.0,0.00017862,2]
[404011778,1769717442126,-5369.06299273,0.00017862,2]
[404011780,1769717442136,-150.0,0.00017863,2]
[404011782,1769717442145,-150.0,0.00017863,2]
[404011784,1769717442153,-160.68,0.00017864,2]
[404011786,1769717442162,-25000.0,0.00017874,3]
[404011788,1769717442172,-935.0,0.00017875,2]
[404011790,1769717442181,-5932.0,0.00017876,2]
[404011792,1769717442190,-2443.0,0.00017876,2]
[404011794,1769717442200,-6573.0,0.00017876,2]
[404011796,1769717442209,-159.31845819,0.0001788,2]
[404011798,1769717442218,-5369.06299273,0.00017881,2]
[404011800,1769717442231,-25000.0,0.00017882,3]
[404011802,1769717442240,-159.31845819,0.00017885,2]
[404011804,1769717442250,-381.0,0.00017887,2]
[404011806,1769717442259,-159.31845819,0.0001789,2]
[404011808,1769717442268,-439.29081067,0.0001789,2]
[404011810,1769717442280,-25000.0,0.00017891,3]
[404011813,1769717442289,-25000.0,0.00017891,3]
[404011815,1769717442298,-159.31845819,0.00017895,2]
[404011817,1769717442308,-412.5739099,0.00017899,2]
[404011819,1769717442317,-412.57390989,0.000179,2]
[404011821,1769717442327,-8136.0,0.000179,2]
[404011823,1769717442341,-432.0664,0.000179,2]
[404011825,1769717442351,-159.31845819,0.000179,2]
[404011827,1769717442360,-853.13951069,0.000179,2]
[404011829,1769717442370,-10000.0,0.000179,2]
[404011831,1769717442382,-25000.0,0.000179,3]
[404011833,1769717442391,-6020.138713,0.000179,2]
[404011835,1769717442400,-18960.3119584,0.000179,3]
[404011841,1769717442441,-1828.54521105,0.000179,3]
[404011849,1769717442511,-124.20653937,0.000179,3]
[404011853,1769717442552,-1579.56364063,0.000179,3]
[404011865,1769717443405,-2095.592,0.000179,3]
[404011866,1769717443417,-411.78065055,0.000179,3]
[404011867,1769717443427,-427.45934945,0.000179,2]
[404011869,1769717443438,-967.02205406,0.000179,2]
[404011875,1769717444542,-619.94646908,0.000179,2]
[404011876,1769717444559,-466.7936093,0.000179,2]
[404011877,1769717444580,-618.96077178,0.000179,2]
[404011878,1769717444596,-2268.88073906,0.000179,2]
[404011879,1769717444618,-412.57390989,0.000179,2]
[404011880,1769717444633,-10728.47802208,0.000179,2]
[404011881,1769717444779,-6991.83373034,0.000179,2]
[404011882,1769717444797,-12931.59505029,0.000179,2]
[404011883,1769717444812,-345.0,0.00017904,2]
[404011884,1769717444829,-229.0,0.00017914,2]
[404011885,1769717444845,-150.0,0.00017918,2]
[404011886,1769717444861,-250.0,0.00017918,2]
[404011887,1769717444877,-381.0,0.0001792,2]
[404011888,1769717444893,-205.32141867,0.00017921,2]
[404011889,1769717444909,-381.0,0.00017927,2]
[404011890,1769717444924,-353.0,0.00017941,2]
[404011891,1769717444939,-381.0,0.00017951,2]
[404011892,1769717444954,-42712.9893028,0.00017959,2]
[404011893,1769717444969,-381.0,0.00017964,2]
[404011894,1769717444983,-353.0,0.00017965,2]
[404011895,1769717444999,-381.0,0.00017968,2]
[404011896,1769717445013,-381.0,0.00017969,2]
[404011897,1769717445031,-500.0,0.00017973,2]
[404011898,1769717445045,-500.0,0.00017973,2]
[404011899,1769717445060,-513.07020389,0.00017973,2]
[404011900,1769717445075,-500.0,0.00017973,2]
[404011901,1769717445090,-616.18968513,0.00017973,2]
[404011902,1769717445104,-500.0,0.00017973,2]
[404011903,1769717445119,-235.40003691,0.00017973,2]
[404011904,1769717445135,-580.50276213,0.00017973,2]
[404011905,1769717445151,-528.62760125,0.00017973,2]
[404011906,1769717445165,-502.07287865,0.00017973,2]
[404011907,1769717445180,-500.0,0.00017973,2]
[404011908,1769717445195,-500.0,0.00017973,2]
[404011909,1769717445209,-378.88576021,0.00017973,2]
[404011910,1769717445226,-500.0,0.00017973,2]
[404011911,1769717445241,-480.24339728,0.00017973,2]
[404011912,1769717445256,-500.0,0.00017973,2]
[404011913,1769717445270,-500.0,0.00017973,2]
[404011914,1769717445286,-500.0,0.00017973,2]
[404011915,1769717445301,-500.0,0.00017973,2]
[404011916,1769717445316,-500.0,0.00017973,2]
[404011917,1769717445332,-500.0,0.00017973,2]
[404011918,1769717445349,-500.0,0.00017973,2]
[404011919,1769717445364,-250.0,0.00017973,2]
[404011920,1769717445379,-500.0,0.00017973,2]
[404011921,1769717445394,-150.0,0.00017973,2]
[404011922,1769717445409,-345.0,0.00017985,2]
[404011923,1769717445424,-353.0,0.00017986,2]
[404011924,1769717445438,-347.0,0.00017987,2]
[404011925,1769717445453,-381.0,0.00017988,2]
[404011926,1769717445467,-152.37,0.00017989,2]
[404011927,1769717445483,-190.96711797,0.00017989,2]
[404011928,1769717445497,-500.0,0.00017989,2]
[404011929,1769717445511,-150.0,0.00017999,2]
[404011930,1769717445526,-173.99288078,0.00017999,2]
[404011931,1769717445541,-201.378,0.00017999,2]
[404011932,1769717445556,-2276.4691373,0.00017999,2]
[404011933,1769717445572,-300.0,0.00017999,2]
[404011934,1769717445587,-300.0,0.00017999,2]
[404011935,1769717445602,-464979.640429,0.00017999,2]
[404011936,1769717445617,-300.0,0.00017999,2]
[404011937,1769717445633,-428.89752222,0.00017999,2]
[404011938,1769717445647,-666.0,0.00017999,2]
[404011939,1769717445662,-7479.0814925,0.00017999,2]
[404011940,1769717445677,-300.0,0.00017999,2]
[404011941,1769717445692,-97027.8020063,0.00017999,2]
[404011942,1769717445707,-300.0,0.00017999,2]
[404011943,1769717445721,-9740.4849418,0.00017999,2]
[404011944,1769717445736,-300.0,0.00017999,2]
[404011945,1769717445750,-709.59017579,0.00017999,2]
[404011946,1769717445765,-500.0,0.00017999,2]
[404011947,1769717445780,-505.81433049,0.00017999,2]
[404011948,1769717445796,-2037257.22783948,0.00018,2]
[404011949,1769717445810,-2369348.229955,0.00018,2]
[404011950,1769717445828,-1012.68459326,0.00018,2]
[404011951,1769717445846,-2518.41915281,0.00018,2]
[404011952,1769717445865,-7028.1609264,0.00018,2]
[404011953,1769717445916,-254.94538776,0.00018,2]